[Event "Elite Hotels Open 2023"]
[Site "Elite Stadshotellet, Kungsgatan 6, Vaxjo, Sweden"]
[Date "2023.02.12"]
[Round "7.10"]
[White "Poley, Vladimir"]
[Black "Eriksson, Kristian"]
[Result "1-0"]
[TimeControl "15 minutes + 5 seconds per move from move one (Round 1 - 4) / 90 minutes + 30 seconds per move from move one (Round 5 - 8)"]
[WhiteTitle "IM"]
[WhiteFideId "13500090"]
[BlackFideId "1705172"]
[WhiteElo "2325"]
[BlackElo "2053"]

1. Nf3 {[%clk 01:29:21]} {[%emt 00:01:39]} Nf6 {[%clk 01:30:37]} {[%emt
00:00:21]} 2. g3 {[%clk 01:29:36]} {[%emt 00:00:18]} g6 {[%clk 01:30:32]}
{[%emt 00:00:34]} 3. b4 {[%clk 01:30:00]} {[%emt 00:00:06]} Bg7 {[%clk
01:30:37]} {[%emt 00:00:24]} 4. Bb2 {[%clk 01:30:27]} {[%emt 00:00:04]} O-O
{[%clk 01:30:37]} {[%emt 00:00:30]} 5. Bg2 {[%clk 01:30:55]} {[%emt 00:00:02]}
d6 {[%clk 01:29:15]} {[%emt 00:01:52]} 6. O-O {[%clk 01:31:17]} {[%emt
00:00:09]} c5 {[%clk 01:26:17]} {[%emt 00:03:27]} 7. a3 {[%clk 01:31:21]}
{[%emt 00:00:27]} Qb6 {[%clk 01:23:17]} {[%emt 00:03:30]} 8. d3 {[%clk
01:27:51]} {[%emt 00:03:59]} cxb4 {[%clk 01:17:32]} {[%emt 00:06:15]} 9. Bd4
{[%clk 01:27:36]} {[%emt 00:00:46]} Qc7 {[%clk 01:16:38]} {[%emt 00:01:23]} 10.
axb4 {[%clk 01:27:44]} {[%emt 00:00:22]} Nc6 {[%clk 01:12:47]} {[%emt
00:04:21]} 11. Bc3 {[%clk 01:27:55]} {[%emt 00:00:18]} e5 {[%clk 01:04:12]}
{[%emt 00:09:07]} 12. b5 {[%clk 01:19:47]} {[%emt 00:08:37]} Ne7 {[%clk
01:00:40]} {[%emt 00:04:03]} 13. e4 {[%clk 01:07:25]} {[%emt 00:12:51]} Bd7
{[%clk 00:57:19]} {[%emt 00:03:51]} 14. Qd2 {[%clk 01:07:19]} {[%emt 00:00:36]}
Bxb5 {[%clk 00:55:40]} {[%emt 00:02:08]} 15. Na3 {[%clk 01:07:04]} {[%emt
00:00:46]} Ba6 {[%clk 00:52:45]} {[%emt 00:03:26]} 16. Bb2 {[%clk 01:05:10]}
{[%emt 00:02:22]} Nd7 {[%clk 00:50:15]} {[%emt 00:03:02]} 17. Nh4 {[%clk
01:00:51]} {[%emt 00:04:49]} Rac8 {[%clk 00:45:05]} {[%emt 00:05:39]} 18. c4
{[%clk 01:00:48]} {[%emt 00:00:33]} Nc5 {[%clk 00:44:12]} {[%emt 00:01:23]} 19.
Ra2 {[%clk 01:00:24]} {[%emt 00:00:54]} Qd7 {[%clk 00:30:55]} {[%emt 00:13:46]}
20. Rb1 {[%clk 00:59:52]} {[%emt 00:01:03]} Rc7 {[%clk 00:28:53]} {[%emt
00:02:32]} 21. Nf3 {[%clk 00:49:22]} {[%emt 00:11:00]} f5 {[%clk 00:26:01]}
{[%emt 00:03:22]} 22. exf5 {[%clk 00:46:14]} {[%emt 00:03:38]} Qxf5 {[%clk
00:22:46]} {[%emt 00:03:45]} 23. Ne1 {[%clk 00:44:27]} {[%emt 00:02:16]} b6
{[%clk 00:15:51]} {[%emt 00:07:26]} 24. Qe2 {[%clk 00:43:43]} {[%emt 00:01:15]}
Rfc8 {[%clk 00:12:37]} {[%emt 00:03:44]} 25. Rd1 {[%clk 00:40:39]} {[%emt
00:03:34]} Nc6 {[%clk 00:08:55]} {[%emt 00:04:12]} 26. Nec2 {[%clk 00:40:59]}
{[%emt 00:00:09]} Bb7 {[%clk 00:04:32]} {[%emt 00:04:53]} 27. Nb5 {[%clk
00:40:43]} {[%emt 00:00:46]} Rd7 {[%clk 00:04:29]} {[%emt 00:00:34]} 28. Ne3
{[%clk 00:40:33]} {[%emt 00:00:40]} Qf8 {[%clk 00:04:06]} {[%emt 00:00:53]} 29.
Nd5 {[%clk 00:40:38]} {[%emt 00:00:25]} Ra8 {[%clk 00:01:51]} {[%emt 00:02:44]}
30. Bh3 {[%clk 00:30:31]} {[%emt 00:10:37]} Rf7 {[%clk 00:01:29]} {[%emt
00:00:52]} 31. Nbc7 {[%clk 00:30:35]} {[%emt 00:00:27]} Nb4 {[%clk 00:01:15]}
{[%emt 00:00:44]} 32. Nxb4 {[%clk 00:28:06]} {[%emt 00:02:59]} Rxc7 {[%clk
00:01:35]} {[%emt 00:00:11]} 33. Bg2 {[%clk 00:25:58]} {[%emt 00:02:39]} Bxg2
{[%clk 00:01:38]} {[%emt 00:00:27]} 34. Kxg2 {[%clk 00:26:24]} {[%emt
00:00:04]} Rf7 {[%clk 00:01:21]} {[%emt 00:00:46]} 35. Nd5 {[%clk 00:26:32]}
{[%emt 00:00:22]} Qd8 {[%clk 00:00:53]} {[%emt 00:00:58]} 36. Bc1 {[%clk
00:26:51]} {[%emt 00:00:11]} Ne6 {[%clk 00:00:39]} {[%emt 00:00:43]} 37. Be3
{[%clk 00:27:15]} {[%emt 00:00:06]} Nc7 {[%clk 00:00:44]} {[%emt 00:00:26]} 38.
Nc3 {[%clk 00:27:02]} {[%emt 00:00:43]} Qd7 {[%clk 00:00:51]} {[%emt 00:00:23]}
39. Rda1 {[%clk 00:26:59]} {[%emt 00:00:32]} Qc6+ {[%clk 00:01:01]} {[%emt
00:00:21]} 40. Kg1 {[%clk 00:27:07]} {[%emt 00:00:22]} a5 {[%clk 00:00:54]}
{[%emt 00:00:38]} 41. Rb1 {[%clk 00:27:24]} {[%emt 00:00:12]} Rb8 {[%clk
00:00:44]} {[%emt 00:00:40]} 42. Rxa5 {[%clk 00:27:45]} {[%emt 00:00:10]} bxa5
{[%clk 00:01:07]} {[%emt 00:00:07]} 43. Rxb8+ {[%clk 00:28:10]} {[%emt
00:00:04]} Rf8 {[%clk 00:01:27]} {[%emt 00:00:11]} 44. Rb6 {[%clk 00:28:23]}
{[%emt 00:00:16]} Qd7 {[%clk 00:01:39]} {[%emt 00:00:18]} 45. Qa2 {[%clk
00:28:24]} {[%emt 00:00:29]} Kh8 {[%clk 00:01:01]} {[%emt 00:01:08]} 46. Qxa5
{[%clk 00:26:27]} {[%emt 00:02:28]} Ra8 {[%clk 00:00:44]} {[%emt 00:00:47]} 47.
Qxa8+ {[%clk 00:26:50]} {[%emt 00:00:06]} Nxa8 {[%clk 00:01:07]} {[%emt
00:00:07]} 48. Rb8+ {[%clk 00:27:15]} {[%emt 00:00:05]} Bf8 {[%clk 00:01:33]}
{[%emt 00:00:04]} 49. Rxf8+ {[%clk 00:27:40]} {[%emt 00:00:05]} Kg7 {[%clk
00:01:59]} {[%emt 00:00:04]} 50. Rxa8 {[%clk 00:28:05]} {[%emt 00:00:05]} Qf5
{[%clk 00:01:12]} {[%emt 00:01:16]} 51. Ne4 {[%clk 00:28:03]} {[%emt 00:00:32]}
Qf3 {[%clk 00:00:49]} {[%emt 00:00:54]} 52. Ra7+ {[%clk 00:28:21]} {[%emt
00:00:12]} Kg8 {[%clk 00:00:57]} {[%emt 00:00:20]} 53. Bh6 {[%clk 00:28:04]}
{[%emt 00:00:49]} 1-0

[Event "Elite Hotels Open 2023"]
[Site "Elite Stadshotellet, Kungsgatan 6, Vaxjo, Sweden"]
[Date "2023.02.12"]
[Round "7.11"]
[White "Dingertz, Erik"]
[Black "Lindberg, Bengt"]
[Result "0-1"]
[TimeControl "15 minutes + 5 seconds per move from move one (Round 1 - 4) / 90 minutes + 30 seconds per move from move one (Round 5 - 8)"]
[BlackTitle "IM"]
[WhiteFideId "1741578"]
[BlackFideId "1700359"]
[WhiteElo "2017"]
[BlackElo "2354"]

1. c4 {[%clk 01:30:55]} {[%emt 00:00:04]} Nf6 {[%clk 01:28:54]} {[%emt
00:02:06]} 2. g3 {[%clk 01:31:17]} {[%emt 00:00:09]} e6 {[%clk 01:29:03]}
{[%emt 00:00:20]} 3. Bg2 {[%clk 01:31:39]} {[%emt 00:00:09]} d5 {[%clk
01:29:22]} {[%emt 00:00:11]} 4. Nf3 {[%clk 01:32:03]} {[%emt 00:00:05]} Be7
{[%clk 01:29:40]} {[%emt 00:00:12]} 5. O-O {[%clk 01:32:26]} {[%emt 00:00:07]}
O-O {[%clk 01:29:54]} {[%emt 00:00:16]} 6. b3 {[%clk 01:32:50]} {[%emt
00:00:07]} d4 {[%clk 01:29:09]} {[%emt 00:01:13]} 7. e3 {[%clk 01:33:13]}
{[%emt 00:00:08]} c5 {[%clk 01:29:25]} {[%emt 00:00:14]} 8. exd4 {[%clk
01:33:14]} {[%emt 00:00:30]} cxd4 {[%clk 01:29:47]} {[%emt 00:00:08]} 9. Re1
{[%clk 01:33:39]} {[%emt 00:00:05]} Nc6 {[%clk 01:29:49]} {[%emt 00:00:27]} 10.
d3 {[%clk 01:33:53]} {[%emt 00:00:16]} Nd7 {[%clk 01:28:45]} {[%emt 00:01:34]}
11. Ba3 {[%clk 01:30:03]} {[%emt 00:04:21]} a5 {[%clk 01:25:00]} {[%emt
00:04:14]} 12. Nfd2 {[%clk 01:21:17]} {[%emt 00:09:17]} Bb4 {[%clk 01:20:23]}
{[%emt 00:05:07]} 13. Bxb4 {[%clk 01:15:11]} {[%emt 00:06:37]} axb4 {[%clk
01:20:46]} {[%emt 00:00:07]} 14. Nf3 {[%clk 01:11:34]} {[%emt 00:04:06]} Nc5
{[%clk 01:19:20]} {[%emt 00:01:54]} 15. Qc2 {[%clk 01:09:18]} {[%emt 00:02:48]}
Qd6 {[%clk 01:16:46]} {[%emt 00:03:03]} 16. Nbd2 {[%clk 01:08:32]} {[%emt
00:01:17]} f5 {[%clk 01:16:57]} {[%emt 00:00:19]} 17. Re2 {[%clk 01:02:57]}
{[%emt 00:06:05]} e5 {[%clk 01:11:08]} {[%emt 00:06:19]} 18. Rae1 {[%clk
01:03:17]} {[%emt 00:00:10]} e4 {[%clk 01:10:49]} {[%emt 00:00:49]} 19. dxe4
{[%clk 01:00:40]} {[%emt 00:03:08]} d3 {[%clk 01:10:55]} {[%emt 00:00:23]} 0-1

[Event "Elite Hotels Open 2023"]
[Site "Elite Stadshotellet, Kungsgatan 6, Vaxjo, Sweden"]
[Date "2023.02.12"]
[Round "7.12"]
[White "Karlsson, Jorgen"]
[Black "Falkevall, Axel"]
[Result "1-0"]
[TimeControl "15 minutes + 5 seconds per move from move one (Round 1 - 4) / 90 minutes + 30 seconds per move from move one (Round 5 - 8)"]
[BlackTitle "FM"]
[WhiteFideId "1711679"]
[BlackFideId "1735560"]
[WhiteElo "1987"]
[BlackElo "2299"]

1. b3 {[%clk 01:30:58]} {[%emt 00:00:02]} Nf6 {[%clk 01:30:55]} {[%emt
00:00:05]} 2. Bb2 {[%clk 01:31:22]} {[%emt 00:00:06]} g6 {[%clk 01:31:20]}
{[%emt 00:00:05]} 3. g3 {[%clk 01:31:45]} {[%emt 00:00:07]} Bg7 {[%clk
01:31:45]} {[%emt 00:00:05]} 4. Bg2 {[%clk 01:32:05]} {[%emt 00:00:10]} O-O
{[%clk 01:30:55]} {[%emt 00:01:20]} 5. d3 {[%clk 01:31:49]} {[%emt 00:00:46]}
d6 {[%clk 01:29:54]} {[%emt 00:01:31]} 6. Nd2 {[%clk 01:31:08]} {[%emt
00:01:11]} e5 {[%clk 01:28:54]} {[%emt 00:01:31]} 7. c4 {[%clk 01:29:01]}
{[%emt 00:02:36]} Nc6 {[%clk 01:23:29]} {[%emt 00:05:56]} 8. a3 {[%clk
01:28:43]} {[%emt 00:00:48]} a5 {[%clk 01:23:29]} {[%emt 00:00:31]} 9. e3
{[%clk 01:26:00]} {[%emt 00:03:11]} Re8 {[%clk 01:11:39]} {[%emt 00:12:21]} 10.
Ne2 {[%clk 01:24:48]} {[%emt 00:01:42]} Bf5 {[%clk 01:06:28]} {[%emt 00:05:41]}
11. Qc2 {[%clk 01:23:57]} {[%emt 00:01:21]} Qd7 {[%clk 01:05:54]} {[%emt
00:01:04]} 12. h3 {[%clk 01:24:12]} h5 {[%clk 01:03:33]} {[%emt 00:03:06]} 13.
Nc3 {[%clk 01:21:33]} Ne7 {[%clk 00:53:24]} {[%emt 00:13:48]} 14. Bxb7 {[%clk
01:14:43]} Rab8 {[%clk 00:52:37]} {[%emt 00:08:38]} 15. Bg2 {[%clk 01:15:07]}
c6 {[%clk 00:51:33]} {[%emt 00:01:40]} 16. Na4 {[%clk 01:06:39]} Nh7 {[%clk
00:45:15]} {[%emt 00:15:45]} 17. Bc3 {[%clk 01:00:44]} c5 {[%clk 00:37:00]}
{[%emt 00:15:11]} 18. e4 {[%clk 00:59:28]} {[%emt 00:01:46]} Be6 {[%clk
00:37:02]} {[%emt 00:00:28]} 19. Nf3 {[%clk 00:52:19]} {[%emt 00:07:38]} f5
{[%clk 00:28:41]} {[%emt 00:08:51]} 20. Bxa5 {[%clk 00:44:39]} {[%emt
00:08:10]} fxe4 {[%clk 00:27:02]} {[%emt 00:02:09]} 21. dxe4 {[%clk 00:45:00]}
{[%emt 00:00:09]} Nc6 {[%emt 00:01:59]} 22. Bd2 {[%clk 00:43:47]} {[%emt
00:01:39]} Rf8 {[%clk 00:22:05]} {[%emt 00:04:02]} 23. Be3 {[%clk 00:39:15]}
{[%emt 00:05:01]} Nd4 {[%clk 00:20:59]} {[%emt 00:01:36]} 24. Bxd4 {[%clk
00:39:23]} {[%emt 00:00:22]} exd4 {[%clk 00:21:13]} {[%emt 00:00:17]} 25. Rb1
{[%clk 00:37:44]} {[%emt 00:02:09]} Rbe8 {[%clk 00:18:18]} {[%emt 00:03:24]} 26.
Kf1 {[%clk 00:35:08]} {[%emt 00:03:06]} Qf7 {[%clk 00:10:13]} {[%emt 00:08:34]}
27. Nb2 {[%clk 00:34:14]} {[%emt 00:01:25]} Bd7 {[%clk 00:09:38]} {[%emt
00:01:05]} 28. Kg1 {[%clk 00:25:35]} {[%emt 00:09:09]} Bc6 {[%clk 00:08:37]}
{[%emt 00:01:32]} 29. Re1 {[%clk 00:25:55]} {[%emt 00:00:10]} Qb7 {[%clk
00:06:37]} {[%emt 00:02:31]} 30. Nd2 {[%clk 00:25:50]} {[%emt 00:00:35]} h4
{[%clk 00:05:51]} {[%emt 00:01:16]} 31. Nd3 {[%clk 00:22:55]} {[%emt 00:03:24]}
Bh6 {[%clk 00:05:17]} {[%emt 00:01:05]} 32. b4 {[%clk 00:21:29]} {[%emt
00:01:57]} Nf6 {[%clk 00:03:09]} {[%emt 00:02:36]} 33. b5 {[%clk 00:15:39]}
{[%emt 00:06:20]} hxg3 {[%clk 00:02:53]} {[%emt 00:00:46]} 34. bxc6 {[%clk
00:15:34]} {[%emt 00:00:35]} gxf2+ {[%clk 00:03:15]} {[%emt 00:00:08]} 35. Nxf2
{[%clk 00:15:51]} {[%emt 00:00:13]} Qf7 {[%clk 00:03:15]} {[%emt 00:00:30]} 36.
Nf1 {[%clk 00:14:10]} {[%emt 00:02:11]} Nh5 {[%clk 00:02:49]} {[%emt 00:00:56]}
37. Ng4 {[%clk 00:14:13]} {[%emt 00:00:27]} Bg5 {[%clk 00:03:03]} {[%emt
00:00:17]} 38. e5 {[%clk 00:14:24]} {[%emt 00:00:18]} Kh7 {[%clk 00:03:20]}
{[%emt 00:00:12]} 39. Bd5 {[%clk 00:11:48]} {[%emt 00:03:07]} Qf4 {[%clk
00:03:19]} {[%emt 00:00:31]} 40. e6 {[%clk 00:10:57]} {[%emt 00:01:21]} Bh4
{[%clk 00:03:32]} {[%emt 00:00:18]} 41. Rb1 {[%clk 00:10:32]} {[%emt 00:00:55]}
d3 {[%clk 00:02:06]} {[%emt 00:01:56]} 42. Qxd3 {[%clk 00:10:10]} {[%emt
00:00:52]} Bf2+ {[%clk 00:02:12]} {[%emt 00:00:24]} 43. Kg2 {[%clk 00:09:55]}
{[%emt 00:00:45]} Bd4 {[%clk 00:01:52]} {[%emt 00:00:50]} 44. Qd2 {[%clk
00:09:24]} {[%emt 00:01:01]} Rb8 {[%clk 00:00:45]} {[%emt 00:01:36]} 45. Rb7+
{[%clk 00:09:18]} {[%emt 00:00:36]} Rxb7 {[%clk 00:00:42]} {[%emt 00:00:34]} 46.
cxb7 {[%clk 00:09:42]} {[%emt 00:00:06]} Qxd2+ {[%clk 00:00:45]} {[%emt
00:00:27]} 47. Nxd2 {[%clk 00:10:06]} {[%emt 00:00:06]} Nf4+ {[%clk 00:01:13]}
{[%emt 00:00:01]} 48. Kh2 {[%clk 00:10:09]} {[%emt 00:00:27]} Ne2 {[%clk
00:01:01]} {[%emt 00:00:42]} 49. Ne4 {[%clk 00:09:55]} {[%emt 00:00:44]} 1-0

[Event "Elite Hotels Open 2023"]
[Site "Elite Stadshotellet, Kungsgatan 6, Vaxjo, Sweden"]
[Date "2023.02.12"]
[Round "7.13"]
[White "Krantz, Christopher"]
[Black "Slettebo, Jan"]
[Result "1-0"]
[TimeControl "15 minutes + 5 seconds per move from move one (Round 1 - 4) / 90 minutes + 30 seconds per move from move one (Round 5 - 8)"]
[WhiteFideId "1707876"]
[BlackFideId "1704958"]
[WhiteElo "2262"]
[BlackElo "1971"]

1. d4 {[%clk 01:30:57]} {[%emt 00:00:02]} d5 {[%clk 01:30:51]} {[%emt
00:00:09]} 2. Nf3 {[%clk 01:31:22]} {[%emt 00:00:06]} Nc6 {[%clk 01:30:55]}
{[%emt 00:00:27]} 3. Bf4 {[%clk 01:31:35]} {[%emt 00:00:16]} Bg4 {[%clk
01:31:15]} {[%emt 00:00:10]} 4. e3 {[%clk 01:31:23]} {[%emt 00:00:42]} e6
{[%clk 01:31:34]} {[%emt 00:00:11]} 5. Be2 {[%clk 01:28:12]} {[%emt 00:03:41]}
Bd6 {[%clk 01:25:23]} {[%emt 00:06:41]} 6. Bg3 {[%clk 01:27:53]} {[%emt
00:00:49]} Nge7 {[%clk 01:24:42]} {[%emt 00:01:11]} 7. Nbd2 {[%clk 01:25:01]}
{[%emt 00:03:23]} Nf5 {[%clk 01:21:55]} {[%emt 00:03:16]} 8. Bxd6 {[%clk
01:24:17]} {[%emt 00:01:14]} Nxd6 {[%clk 01:20:15]} {[%emt 00:02:11]} 9. O-O
{[%clk 01:20:09]} {[%emt 00:04:38]} O-O {[%clk 01:19:59]} {[%emt 00:00:46]} 10.
Rc1 {[%clk 01:18:26]} {[%emt 00:02:12]} Na5 {[%clk 01:00:38]} {[%emt 00:19:51]}
11. b3 {[%clk 01:15:22]} {[%emt 00:03:34]} b5 {[%clk 00:53:57]} {[%emt
00:07:12]} 12. h3 {[%clk 01:11:24]} {[%emt 00:04:26]} Bxf3 {[%clk 00:51:46]}
{[%emt 00:02:44]} 13. Nxf3 {[%clk 01:04:58]} {[%emt 00:06:56]} Rc8 {[%clk
00:49:50]} {[%emt 00:02:26]} 14. Ne5 {[%clk 01:00:24]} {[%emt 00:05:03]} c6
{[%clk 00:50:12]} {[%emt 00:00:08]} 15. Qe1 {[%clk 00:47:47]} {[%emt 00:13:05]}
f6 {[%clk 00:50:24]} {[%emt 00:00:20]} 16. Nd3 {[%clk 00:46:15]} {[%emt
00:02:02]} Nab7 {[%clk 00:50:42]} {[%emt 00:00:12]} 17. c4 {[%clk 00:43:40]}
{[%emt 00:03:05]} Qe7 {[%clk 00:43:17]} {[%emt 00:07:55]} 18. cxb5 {[%clk
00:37:36]} {[%emt 00:06:34]} cxb5 {[%clk 00:43:40]} {[%emt 00:00:08]} 19. Nc5
{[%clk 00:35:20]} {[%emt 00:02:45]} Rc6 {[%clk 00:40:48]} {[%emt 00:03:22]} 20.
Nd3 {[%clk 00:22:47]} {[%emt 00:13:03]} Rfc8 {[%clk 00:38:43]} {[%emt
00:02:35]} 21. Rxc6 {[%clk 00:21:04]} {[%emt 00:02:14]} Rxc6 {[%clk 00:39:02]}
{[%emt 00:00:10]} 22. f3 {[%clk 00:17:37]} {[%emt 00:03:57]} a5 {[%clk
00:35:41]} {[%emt 00:03:51]} 23. Qd2 {[%clk 00:16:56]} {[%emt 00:01:11]} Qc7
{[%clk 00:35:39]} {[%emt 00:00:32]} 24. Rc1 {[%clk 00:16:27]} {[%emt 00:00:59]}
b4 {[%clk 00:32:23]} {[%emt 00:03:46]} 25. Rxc6 {[%clk 00:16:21]} {[%emt
00:00:36]} Qxc6 {[%clk 00:32:47]} {[%emt 00:00:06]} 26. Nf4 {[%clk 00:15:40]}
{[%emt 00:01:10]} Kf7 {[%clk 00:31:43]} {[%emt 00:01:34]} 27. Qd3 {[%clk
00:13:01]} {[%emt 00:03:09]} g6 {[%clk 00:32:01]} {[%emt 00:00:12]} 28. Qd2
{[%clk 00:10:30]} {[%emt 00:03:02]} Nd8 {[%clk 00:31:39]} {[%emt 00:00:52]} 29.
Nd3 {[%clk 00:10:18]} {[%emt 00:00:43]} Nb5 {[%clk 00:25:05]} {[%emt 00:07:04]}
30. Nc5 {[%clk 00:10:26]} {[%emt 00:00:20]} Nc3 {[%clk 00:25:28]} {[%emt
00:00:08]} 31. Ba6 {[%clk 00:09:08]} {[%emt 00:01:48]} e5 {[%clk 00:23:12]}
{[%emt 00:02:46]} 32. a4 {[%clk 00:06:20]} {[%emt 00:03:19]} exd4 {[%clk
00:22:07]} {[%emt 00:01:34]} 33. exd4 {[%clk 00:04:58]} {[%emt 00:01:52]} Ne6
{[%clk 00:21:53]} {[%emt 00:00:44]} 34. Nxe6 {[%clk 00:04:20]} {[%emt
00:01:07]} Qxe6 {[%clk 00:21:45]} {[%emt 00:00:38]} 35. Bd3 {[%clk 00:04:07]}
{[%emt 00:00:42]} Kg7 {[%clk 00:16:55]} {[%emt 00:05:21]} 36. Kh2 {[%clk
00:04:24]} {[%emt 00:00:13]} f5 {[%clk 00:15:12]} {[%emt 00:02:13]} 37. g3
{[%clk 00:03:56]} {[%emt 00:00:58]} h6 {[%clk 00:11:33]} {[%emt 00:04:10]} 38.
h4 {[%clk 00:04:12]} {[%emt 00:00:13]} Qf6 {[%clk 00:10:58]} {[%emt 00:01:06]}
39. Qe3 {[%clk 00:04:10]} {[%emt 00:00:33]} f4 {[%clk 00:10:47]} {[%emt
00:00:40]} 40. Qxf4 {[%clk 00:03:34]} {[%emt 00:01:06]} Qxf4 {[%clk 00:11:12]}
{[%emt 00:00:06]} 41. gxf4 {[%clk 00:03:59]} {[%emt 00:00:04]} Na2 {[%clk
00:11:30]} {[%emt 00:00:12]} 42. Bc2 {[%clk 00:02:46]} {[%emt 00:01:44]} Nc1
{[%clk 00:11:54]} {[%emt 00:00:06]} 43. Bd1 {[%clk 00:02:35]} {[%emt 00:00:40]}
Nd3 {[%clk 00:12:03]} {[%emt 00:00:21]} 44. Kg3 {[%clk 00:02:34]} {[%emt
00:00:31]} Kf6 {[%clk 00:11:25]} {[%emt 00:01:08]} 45. Bc2 {[%clk 00:02:38]}
{[%emt 00:00:27]} Nc1 {[%clk 00:11:47]} {[%emt 00:00:09]} 46. Kf2 {[%clk
00:02:23]} {[%emt 00:00:44]} Na2 {[%clk 00:11:43]} {[%emt 00:00:34]} 47. Ke3
{[%clk 00:02:22]} {[%emt 00:00:31]} Nc3 {[%clk 00:12:04]} {[%emt 00:00:10]} 48.
Bd3 {[%clk 00:02:12]} {[%emt 00:00:39]} Nd1+ {[%clk 00:12:12]} {[%emt
00:00:22]} 49. Ke2 {[%clk 00:02:22]} {[%emt 00:00:18]} Nc3+ {[%clk 00:12:37]}
{[%emt 00:00:07]} 50. Kd2 {[%clk 00:02:41]} {[%emt 00:00:10]} 1-0

[Event "Elite Hotels Open 2023"]
[Site "Elite Stadshotellet, Kungsgatan 6, Vaxjo, Sweden"]
[Date "2023.02.12"]
[Round "7.14"]
[White "Johansson, William"]
[Black "Johansson, Gunnar"]
[Result "0-1"]
[TimeControl "15 minutes + 5 seconds per move from move one (Round 1 - 4) / 90 minutes + 30 seconds per move from move one (Round 5 - 8)"]
[WhiteFideId "1744070"]
[BlackFideId "1703501"]
[WhiteElo "1981"]
[BlackElo "2260"]

1. d4 {[%clk 01:30:57]} {[%emt 00:00:03]} d5 {[%clk 01:30:53]} {[%emt
00:00:08]} 2. Nf3 {[%clk 01:31:21]} {[%emt 00:00:06]} Nf6 {[%clk 01:31:17]}
{[%emt 00:00:05]} 3. c3 {[%clk 01:31:45]} {[%emt 00:00:06]} c5 {[%clk
01:30:57]} {[%emt 00:00:50]} 4. dxc5 {[%clk 01:32:04]} {[%emt 00:00:11]} e6
{[%clk 01:30:22]} {[%emt 00:01:05]} 5. Be3 {[%clk 01:31:13]} {[%emt 00:01:21]}
a5 {[%clk 01:16:45]} {[%emt 00:14:07]} 6. Ne5 {[%clk 01:13:37]} {[%emt
00:18:06]} Nbd7 {[%clk 00:59:45]} {[%emt 00:17:31]} 7. Qa4 {[%clk 01:10:37]}
{[%emt 00:03:30]} Qc7 {[%clk 00:59:46]} {[%emt 00:00:28]} 8. Nd3 {[%clk
01:09:19]} {[%emt 00:01:48]} e5 {[%clk 00:57:11]} {[%emt 00:03:05]} 9. Na3
{[%clk 01:05:32]} {[%emt 00:04:18]} Be7 {[%clk 00:56:01]} {[%emt 00:01:40]} 10.
Nb5 {[%clk 01:04:08]} {[%emt 00:01:54]} Qb8 {[%clk 00:55:13]} {[%emt 00:01:17]}
11. g3 {[%clk 00:59:14]} {[%emt 00:05:25]} O-O {[%clk 00:55:18]} {[%emt
00:00:24]} 12. Bg2 {[%clk 00:59:03]} {[%emt 00:00:41]} Rd8 {[%clk 00:53:04]}
{[%emt 00:02:43]} 13. O-O {[%clk 00:46:18]} {[%emt 00:13:16]} Nf8 {[%clk
00:52:28]} {[%emt 00:01:06]} 14. h3 {[%clk 00:43:18]} {[%emt 00:03:30]} Bd7
{[%clk 00:43:59]} {[%emt 00:08:59]} 15. f4 {[%clk 00:39:06]} {[%emt 00:04:42]}
e4 {[%clk 00:41:47]} {[%emt 00:02:42]} 16. Ne5 {[%clk 00:35:03]} {[%emt
00:04:33]} Be8 {[%clk 00:35:51]} {[%emt 00:06:26]} 17. c6 {[%clk 00:32:34]}
{[%emt 00:03:00]} bxc6 {[%clk 00:35:07]} {[%emt 00:01:13]} 18. Nd4 {[%clk
00:32:44]} {[%emt 00:00:20]} Bd6 {[%clk 00:26:37]} {[%emt 00:09:00]} 19. Nf5
{[%clk 00:20:16]} {[%emt 00:12:58]} Qxb2 {[%clk 00:17:21]} {[%emt 00:09:45]} 20.
Nxd6 {[%clk 00:06:09]} {[%emt 00:14:38]} Rxd6 {[%clk 00:17:31]} {[%emt
00:00:20]} 21. Bc5 {[%clk 00:05:35]} {[%emt 00:01:05]} Rdd8 {[%clk 00:16:41]}
{[%emt 00:01:19]} 22. e3 {[%clk 00:03:13]} {[%emt 00:02:51]} Ne6 {[%clk
00:13:34]} {[%emt 00:03:36]} 23. Rfb1 {[%clk 00:01:02]} {[%emt 00:02:41]} Nxc5
{[%clk 00:12:50]} {[%emt 00:01:15]} 24. Qd4 {[%clk 00:00:45]} {[%emt 00:00:46]}
Qa3 {[%clk 00:12:40]} {[%emt 00:00:40]} 25. f5 {[%clk 00:00:33]} {[%emt
00:00:43]} Rab8 {[%clk 00:10:53]} {[%emt 00:02:17]} 26. Nc4 {[%clk 00:00:33]}
{[%emt 00:00:31]} dxc4 {[%clk 00:10:23]} {[%emt 00:00:59]} 27. Rxb8 {[%clk
00:00:33]} {[%emt 00:00:30]} Rxb8 {[%clk 00:10:21]} {[%emt 00:00:31]} 0-1